[Event "*** Qualifier 2: Titled Tuesday 3|2 Blitz"]
[Site "Chess.com"]
[Date "2017.04.11"]
[Round "8"]
[White "MyleneFarmer"]
[Black "rasmussvane"]
[Result "1-0"]
[WhiteElo "2331"]
[BlackElo "2493"]
[TimeControl "180+2"]
[EndTime "15:00:20 PDT"]
[Termination "MyleneFarmer won on time"]

1. f3 {[%clk 0:02:52.8]} 1... e5 {[%clk 0:02:58.6]} 2. Nh3 {[%clk 0:02:52.4]}
2... d5 {[%clk 0:02:59]} 3. Nf2 {[%clk 0:02:53.1]} 3... Nc6 {[%clk 0:02:57.4]}
4. e3 {[%clk 0:02:54.4]} 4... Nf6 {[%clk 0:02:57.4]} 5. g3 {[%clk 0:02:54.6]}
5... h5 {[%clk 0:02:56]} 6. d3 {[%clk 0:02:51.2]} 6... Bd6 {[%clk 0:02:53]} 7.
c3 {[%clk 0:02:50.5]} 7... Be6 {[%clk 0:02:46]} 8. b3 {[%clk 0:02:49.5]} 8...
Qd7 {[%clk 0:02:45.1]} 9. Bb2 {[%clk 0:02:50.4]} 9... O-O-O {[%clk 0:02:45.4]}
10. Nd2 {[%clk 0:02:50.5]} 10... h4 {[%clk 0:02:42.3]} 11. a3 {[%clk 0:02:48.3]}
11... hxg3 {[%clk 0:02:39.8]} 12. hxg3 {[%clk 0:02:49.6]} 12... Rxh1 {[%clk
0:02:38.5]} 13. Nxh1 {[%clk 0:02:51.5]} 13... Rh8 {[%clk 0:02:39.7]} 14. Bg2
{[%clk 0:02:53.1]} 14... Bh3 {[%clk 0:02:37.4]} 15. Qe2 {[%clk 0:02:52.2]} 15...
Bxg2 {[%clk 0:02:26.5]} 16. Qxg2 {[%clk 0:02:54.1]} 16... Qf5 {[%clk 0:02:27.1]}
17. Nf2 {[%clk 0:02:46.1]} 17... Bc5 {[%clk 0:02:19.9]} 18. Nf1 {[%clk
0:02:40.3]} 18... Qg5 {[%clk 0:02:16.5]} 19. d4 {[%clk 0:02:34.8]} 19... exd4
{[%clk 0:02:12]} 20. cxd4 {[%clk 0:02:36.7]} 20... Bd6 {[%clk 0:02:10.4]} 21.
O-O-O {[%clk 0:02:34.6]} 21... Na5 {[%clk 0:02:08.6]} 22. Kc2 {[%clk 0:02:34.1]}
22... Qf5+ {[%clk 0:02:08.1]} 23. Nd3 {[%clk 0:02:33.5]} 23... Qd7 {[%clk
0:02:08]} 24. Bc3 {[%clk 0:02:28.2]} 24... Nc6 {[%clk 0:02:06.9]} 25. b4 {[%clk
0:02:24.7]} 25... Ne7 {[%clk 0:02:02.2]} 26. Kb2 {[%clk 0:02:15.9]} 26... Kb8
{[%clk 0:01:44.6]} 27. Ne5 {[%clk 0:02:16.5]} 27... Qe8 {[%clk 0:01:43.7]} 28.
g4 {[%clk 0:02:12.7]} 28... Nc8 {[%clk 0:01:42]} 29. Nd2 {[%clk 0:02:03.6]}
29... Nb6 {[%clk 0:01:42.6]} 30. f4 {[%clk 0:01:51.5]} 30... Ne4 {[%clk
0:01:32.1]} 31. Nxe4 {[%clk 0:01:46.9]} 31... dxe4 {[%clk 0:01:33.3]} 32. Qf1
{[%clk 0:00:54.7]} 32... Qe6 {[%clk 0:01:30.1]} 33. d5 {[%clk 0:00:48.9]} 33...
Nxd5 {[%clk 0:01:26.3]} 34. f5 {[%clk 0:00:40.8]} 34... Rh2+ {[%clk 0:01:10]}
35. Kc1 {[%clk 0:00:39.3]} 35... Qe8 {[%clk 0:00:47.8]} 36. Rxd5 {[%clk
0:00:39.3]} 36... Qa4 {[%clk 0:00:49.3]} 37. Rd2 {[%clk 0:00:21.7]} 37... Rxd2
{[%clk 0:00:42.1]} 38. Kxd2 {[%clk 0:00:21.3]} 38... f6 {[%clk 0:00:38.6]} 39.
Nc4 {[%clk 0:00:19.1]} 39... Qb3 {[%clk 0:00:40]} 40. Nxd6 {[%clk 0:00:18.6]}
40... cxd6 {[%clk 0:00:41.9]} 41. Qb5 {[%clk 0:00:12.6]} 41... Qa2+ {[%clk
0:00:41.4]} 42. Ke1 {[%clk 0:00:12.9]} 42... Qxa3 {[%clk 0:00:40.3]} 43. Qe8+
{[%clk 0:00:13.3]} 43... Kc7 {[%clk 0:00:41.2]} 44. Qe7+ {[%clk 0:00:14.8]}
44... Kc6 {[%clk 0:00:38.6]} 45. Qxe4+ {[%clk 0:00:15.7]} 45... Kc7 {[%clk
0:00:38.1]} 46. Qe7+ {[%clk 0:00:16.6]} 46... Kc6 {[%clk 0:00:39.3]} 47. Qe8+
{[%clk 0:00:17.7]} 47... Kc7 {[%clk 0:00:33.6]} 48. Bd2 {[%clk 0:00:17.3]} 48...
Qa1+ {[%clk 0:00:28.4]} 49. Ke2 {[%clk 0:00:17.8]} 49... Qa6+ {[%clk 0:00:25.1]}
50. Kf2 {[%clk 0:00:18]} 50... Qa2 {[%clk 0:00:24.6]} 51. Qe7+ {[%clk
0:00:17.6]} 51... Kc6 {[%clk 0:00:25.3]} 52. Qe4+ {[%clk 0:00:17.4]} 52... d5
{[%clk 0:00:24.3]} 53. Qe6+ {[%clk 0:00:18.2]} 53... Kb5 {[%clk 0:00:25.4]} 54.
Ke1 {[%clk 0:00:17.7]} 54... Kc4 {[%clk 0:00:22.1]} 55. e4 {[%clk 0:00:17.9]}
55... Qb1+ {[%clk 0:00:19.7]} 56. Ke2 {[%clk 0:00:18.3]} 56... Qd3+ {[%clk
0:00:20.2]} 57. Ke1 {[%clk 0:00:18.1]} 57... Qg3+ {[%clk 0:00:21.1]} 58. Kd1
{[%clk 0:00:19]} 58... Qb3+ {[%clk 0:00:21.3]} 59. Kc1 {[%clk 0:00:18.3]} 59...
Qa3+ {[%clk 0:00:22.3]} 60. Kd1 {[%clk 0:00:19.7]} 60... Qf3+ {[%clk 0:00:21.3]}
61. Ke1 {[%clk 0:00:21.2]} 61... Qg3+ {[%clk 0:00:21.1]} 62. Kf1 {[%clk
0:00:21.8]} 62... Qf3+ {[%clk 0:00:22.1]} 63. Ke1 {[%clk 0:00:21.8]} 63... Qg3+
{[%clk 0:00:15.7]} 64. Kd1 {[%clk 0:00:23]} 64... Qb3+ {[%clk 0:00:13.5]} 65.
Ke2 {[%clk 0:00:24.4]} 65... Qd3+ {[%clk 0:00:14.6]} 66. Ke1 {[%clk 0:00:26]}
66... Qg3+ {[%clk 0:00:13.5]} 67. Kf1 {[%clk 0:00:25.8]} 67... Qh3+ {[%clk
0:00:11.9]} 68. Kf2 {[%clk 0:00:26.5]} 68... Qh2+ {[%clk 0:00:12.2]} 69. Ke1
{[%clk 0:00:25.1]} 69... Qg1+ {[%clk 0:00:12.6]} 70. Ke2 {[%clk 0:00:26.3]}
70... Qxg4+ {[%clk 0:00:14.1]} 71. Ke3 {[%clk 0:00:27.3]} 71... Qg3+ {[%clk
0:00:14.3]} 72. Ke2 {[%clk 0:00:28.8]} 72... Qd3+ {[%clk 0:00:15.4]} 73. Kd1
{[%clk 0:00:29.4]} 73... Qf3+ {[%clk 0:00:15.5]} 74. Kc2 {[%clk 0:00:29.8]}
74... Qb3+ {[%clk 0:00:14.4]} 75. Kc1 {[%clk 0:00:31.3]} 75... Qa3+ {[%clk
0:00:15.7]} 76. Kb1 {[%clk 0:00:31.2]} 76... Qd3+ {[%clk 0:00:13.2]} 77. Kc1
{[%clk 0:00:32.5]} 77... Qxe4 {[%clk 0:00:12]} 78. Qc8+ {[%clk 0:00:27]} 78...
Kd3 {[%clk 0:00:10.5]} 79. Qc2+ {[%clk 0:00:17.7]} 79... Ke2 {[%clk 0:00:09.9]}
80. Qd1+ {[%clk 0:00:18.9]} 80... Kf2 {[%clk 0:00:09]} 81. Qa4 {[%clk
0:00:12.6]} 81... Qc4+ {[%clk 0:00:07.3]} 82. Kd1 {[%clk 0:00:12.4]} 82... Qf1+
{[%clk 0:00:07.8]} 83. Kc2 {[%clk 0:00:13.2]} 83... Qc4+ {[%clk 0:00:09.4]} 84.
Kd1 {[%clk 0:00:14.4]} 84... Qg4+ {[%clk 0:00:10.7]} 85. Kc1 {[%clk 0:00:14.9]}
85... Qxf5 {[%clk 0:00:11.7]} 86. Qxa7+ {[%clk 0:00:15.5]} 86... Ke2 {[%clk
0:00:12.7]} 87. Qe3+ {[%clk 0:00:16.1]} 87... Kf1 {[%clk 0:00:14]} 88. Qe1+
{[%clk 0:00:14.2]} 88... Kg2 {[%clk 0:00:15.2]} 89. Qe2+ {[%clk 0:00:15]} 89...
Kh3 {[%clk 0:00:16.1]} 90. Qe3+ {[%clk 0:00:13.3]} 90... Kg4 {[%clk 0:00:16.8]}
91. Qg1+ {[%clk 0:00:13.5]} 91... Kf3 {[%clk 0:00:15.9]} 92. Qxg7 {[%clk
0:00:11.6]} 92... d4 {[%clk 0:00:15]} 93. Qxb7+ {[%clk 0:00:11.5]} 93... Kf2
{[%clk 0:00:13.9]} 94. Qb6 {[%clk 0:00:09.2]} 94... Qe5 {[%clk 0:00:12.8]} 95.
Bc3 {[%clk 0:00:08.8]} 95... Qe3+ {[%clk 0:00:10.8]} 96. Bd2 {[%clk 0:00:09]}
96... Qa3+ {[%clk 0:00:11.7]} 97. Kc2 {[%clk 0:00:10.6]} 97... Qa2+ {[%clk
0:00:05.9]} 98. Kd3 {[%clk 0:00:12]} 98... Qb1+ {[%clk 0:00:06.8]} 99. Kxd4
{[%clk 0:00:13]} 99... Ke2 {[%clk 0:00:08.4]} 100. Bh6 {[%clk 0:00:06.7]} 100...
f5 {[%clk 0:00:08.2]} 101. Qe6+ {[%clk 0:00:06.6]} 101... Kd1 {[%clk 0:00:08.5]}
102. Qc4 {[%clk 0:00:05.1]} 102... Qe4+ {[%clk 0:00:07.3]} 103. Kc5 {[%clk
0:00:06.3]} 103... Qe7+ {[%clk 0:00:07.4]} 104. Kb5 {[%clk 0:00:07]} 104... Qb7+
{[%clk 0:00:08.1]} 105. Ka4 {[%clk 0:00:07.8]} 105... Qa8+ {[%clk 0:00:08.3]}
106. Kb3 {[%clk 0:00:08.4]} 106... Qf3+ {[%clk 0:00:09.5]} 107. Qc3 {[%clk
0:00:09.7]} 107... Qd5+ {[%clk 0:00:09.7]} 108. Kb2 {[%clk 0:00:11]} 108... Qg2+
{[%clk 0:00:10.9]} 109. Kb1 {[%clk 0:00:06.6]} 109... Qe4+ {[%clk 0:00:11.5]}
110. Kb2 {[%clk 0:00:08.1]} 110... Qg2+ {[%clk 0:00:12.5]} 111. Ka1 {[%clk
0:00:09.6]} 111... Qa8+ {[%clk 0:00:13.3]} 112. Kb1 {[%clk 0:00:11.2]} 112...
Qe4+ {[%clk 0:00:14.4]} 113. Kb2 {[%clk 0:00:12.6]} 113... Qg2+ {[%clk
0:00:15.5]} 114. Kb3 {[%clk 0:00:08.4]} 114... Qd5+ {[%clk 0:00:16.2]} 115. Ka4
{[%clk 0:00:09.8]} 115... Qa8+ {[%clk 0:00:15.9]} 116. Kb5 {[%clk 0:00:11.3]}
116... Qb7+ {[%clk 0:00:16.6]} 117. Kc4 {[%clk 0:00:12.7]} 117... Qc6+ {[%clk
0:00:16]} 118. Kd4 {[%clk 0:00:14.2]} 118... Qf6+ {[%clk 0:00:16.5]} 119. Kd3
{[%clk 0:00:15]} 119... Qd6+ {[%clk 0:00:14.9]} 120. Qd4 {[%clk 0:00:16.3]}
120... Qg3+ {[%clk 0:00:14.7]} 121. Be3 {[%clk 0:00:16.6]} 1-0

[Event "*** Qualifier 2: Titled Tuesday 3|2 Blitz"]
[Site "Chess.com"]
[Date "2017.04.11"]
[Round "9"]
[White "saraswathii"]
[Black "macko06"]
[Result "0-1"]
[WhiteElo "2233"]
[BlackElo "2376"]
[TimeControl "180+2"]
[EndTime "15:04:27 PDT"]
[Termination "macko06 won by resignation"]

1. e4 {[%clk 0:03:02]} 1... e6 {[%clk 0:03:00.9]} 2. d3 {[%clk 0:03:03.1]} 2...
d5 {[%clk 0:03:02.8]} 3. Nd2 {[%clk 0:03:03.9]} 3... c5 {[%clk 0:03:02.4]} 4.
Ngf3 {[%clk 0:03:02.4]} 4... Nc6 {[%clk 0:03:03.3]} 5. g3 {[%clk 0:03:03.5]}
5... Bd6 {[%clk 0:03:01.2]} 6. Bg2 {[%clk 0:03:04.5]} 6... Nge7 {[%clk
0:02:59.2]} 7. O-O {[%clk 0:03:05.1]} 7... O-O {[%clk 0:02:58.2]} 8. Qe2 {[%clk
0:03:05.8]} 8... f6 {[%clk 0:02:57.3]} 9. c3 {[%clk 0:03:05.6]} 9... d4 {[%clk
0:02:56]} 10. cxd4 {[%clk 0:02:59.6]} 10... cxd4 {[%clk 0:02:57.9]} 11. Nc4
{[%clk 0:02:58.8]} 11... e5 {[%clk 0:02:51.4]} 12. Nxd6 {[%clk 0:02:59]} 12...
Qxd6 {[%clk 0:02:53.3]} 13. Nh4 {[%clk 0:02:55]} 13... g5 {[%clk 0:02:51.5]} 14.
Nf3 {[%clk 0:02:54.2]} 14... Bg4 {[%clk 0:02:52.2]} 15. h3 {[%clk 0:02:54.1]}
15... Bh5 {[%clk 0:02:52.6]} 16. h4 {[%clk 0:02:54]} 16... gxh4 {[%clk
0:02:50.2]} 17. gxh4 {[%clk 0:02:54.5]} 17... Kh8 {[%clk 0:02:49.2]} 18. Kh1
{[%clk 0:02:51.2]} 18... Ng6 {[%clk 0:02:47.5]} 19. Qc2 {[%clk 0:02:40.3]} 19...
Qd7 {[%clk 0:02:42]} 20. Kh2 {[%clk 0:02:37.7]} 20... Qg4 {[%clk 0:02:39.3]} 21.
Ng1 {[%clk 0:02:30.5]} 21... Nf4 {[%clk 0:02:36.5]} 22. Bxf4 {[%clk 0:02:29.7]}
22... Qxf4+ {[%clk 0:02:33.7]} 23. Kh1 {[%clk 0:02:22.7]} 23... Qxh4+ {[%clk
0:02:33.4]} 24. Bh3 {[%clk 0:02:19.7]} 24... Rg8 {[%clk 0:02:31.4]} 25. f3
{[%clk 0:02:09.7]} 25... Rxg1+ {[%clk 0:02:28.6]} 26. Kxg1 {[%clk 0:02:10.3]}
26... Qxh3 {[%clk 0:02:29.1]} 27. Qh2 {[%clk 0:02:05]} 27... Rg8+ {[%clk
0:02:24]} 28. Kh1 {[%clk 0:02:06.4]} 28... Bxf3+ {[%clk 0:02:22.7]} 0-1

[Event "*** Qualifier 2: Titled Tuesday 3|2 Blitz"]
[Site "Chess.com"]
[Date "2017.04.11"]
[Round "9"]
[White "stepanosinovsky"]
[Black "talaicito"]
[Result "1-0"]
[WhiteElo "2225"]
[BlackElo "2005"]
[TimeControl "180+2"]
[EndTime "15:05:41 PDT"]
[Termination "stepanosinovsky won by checkmate"]

1. e4 {[%clk 0:03:02]} 1... e6 {[%clk 0:03:00.8]} 2. d4 {[%clk 0:03:01.3]} 2...
d5 {[%clk 0:03:01.6]} 3. Nc3 {[%clk 0:03:01.9]} 3... Bb4 {[%clk 0:03:00.3]} 4.
e5 {[%clk 0:03:01.1]} 4... Ne7 {[%clk 0:02:59.8]} 5. a3 {[%clk 0:02:58.6]} 5...
Bxc3+ {[%clk 0:03:00.1]} 6. bxc3 {[%clk 0:02:58.1]} 6... c5 {[%clk 0:03:01.6]}
7. Bd3 {[%clk 0:02:57.6]} 7... Nbc6 {[%clk 0:02:56.9]} 8. Qg4 {[%clk 0:02:55.7]}
8... O-O {[%clk 0:02:29.2]} 9. Qh5 {[%clk 0:02:56.2]} 9... Ng6 {[%clk
0:02:20.6]} 10. Nf3 {[%clk 0:02:51.1]} 10... c4 {[%clk 0:02:09.9]} 11. Ng5
{[%clk 0:02:45.4]} 11... h6 {[%clk 0:01:56.1]} 12. Nxf7 {[%clk 0:02:38.9]} 12...
Rxf7 {[%clk 0:01:56.3]} 13. Bxg6 {[%clk 0:02:39.3]} 13... Rf8 {[%clk 0:01:43.2]}
14. h4 {[%clk 0:02:38.7]} 14... Ne7 {[%clk 0:01:39.8]} 15. Bxh6 {[%clk
0:02:05.8]} 15... gxh6 {[%clk 0:01:28.7]} 16. Qxh6 {[%clk 0:02:06.6]} 16... Nxg6
{[%clk 0:01:29.1]} 17. Qxg6+ {[%clk 0:02:07.5]} 17... Kh8 {[%clk 0:01:29.8]} 18.
Rh3 {[%clk 0:02:03.2]} 18... Rf5 {[%clk 0:00:56.8]} 19. Qh6+ {[%clk 0:01:55.7]}
19... Kg8 {[%clk 0:00:56.7]} 20. Rg3+ {[%clk 0:01:56.4]} 20... Kf7 {[%clk
0:00:53.8]} 21. Rg7+ {[%clk 0:01:56.1]} 21... Ke8 {[%clk 0:00:54]} 22. Qh8+
{[%clk 0:01:54.6]} 22... Rf8 {[%clk 0:00:53.4]} 23. Qh5+ {[%clk 0:01:56.2]}
23... Rf7 {[%clk 0:00:51.5]} 24. Qxf7# {[%clk 0:01:58.1]} 1-0

[Event "*** Qualifier 2: Titled Tuesday 3|2 Blitz"]
[Site "Chess.com"]
[Date "2017.04.11"]
[Round "9"]
[White "OparinGrigoriy"]
[Black "TenisMaster"]
[Result "0-1"]
[WhiteElo "2647"]
[BlackElo "2659"]
[TimeControl "180+2"]
[EndTime "15:06:18 PDT"]
[Termination "TenisMaster won by resignation"]

1. e4 {[%clk 0:03:02]} 1... e5 {[%clk 0:02:59.8]} 2. Nf3 {[%clk 0:03:02.9]} 2...
Nc6 {[%clk 0:03:00.1]} 3. Bc4 {[%clk 0:03:03.9]} 3... Bc5 {[%clk 0:03:00.4]} 4.
c3 {[%clk 0:03:01.8]} 4... Nf6 {[%clk 0:03:01.3]} 5. d3 {[%clk 0:03:03.1]} 5...
d6 {[%clk 0:03:01.3]} 6. a4 {[%clk 0:02:59.9]} 6... a6 {[%clk 0:03:01.9]} 7. Bg5
{[%clk 0:02:59.3]} 7... h6 {[%clk 0:03:00.2]} 8. Bh4 {[%clk 0:03:00.5]} 8... Be6
{[%clk 0:02:41.1]} 9. Nbd2 {[%clk 0:02:57.2]} 9... Ba7 {[%clk 0:02:29.2]} 10.
Bxe6 {[%clk 0:02:52]} 10... fxe6 {[%clk 0:02:28.6]} 11. Qb3 {[%clk 0:02:53.5]}
11... Qc8 {[%clk 0:02:19.9]} 12. a5 {[%clk 0:02:54.8]} 12... O-O {[%clk
0:02:18.3]} 13. O-O {[%clk 0:02:54.7]} 13... Nh5 {[%clk 0:02:16.9]} 14. Kh1
{[%clk 0:02:52.4]} 14... Kh8 {[%clk 0:02:16.2]} 15. Qc4 {[%clk 0:02:38.6]} 15...
Qd7 {[%clk 0:02:10.2]} 16. b4 {[%clk 0:02:30.5]} 16... Ne7 {[%clk 0:02:02.5]}
17. Qb3 {[%clk 0:02:26.2]} 17... Ng6 {[%clk 0:02:01.9]} 18. Bg3 {[%clk
0:02:26.8]} 18... Nhf4 {[%clk 0:01:58.9]} 19. Qc2 {[%clk 0:02:26.8]} 19... Rf7
{[%clk 0:01:50.7]} 20. d4 {[%clk 0:02:25.3]} 20... exd4 {[%clk 0:01:47.6]} 21.
cxd4 {[%clk 0:02:24.6]} 21... Raf8 {[%clk 0:01:46.4]} 22. Nb3 {[%clk 0:02:20.3]}
22... Qb5 {[%clk 0:01:41.3]} 23. Qd2 {[%clk 0:02:06.1]} 23... Nxg2 {[%clk
0:01:37.3]} 24. Ng5 {[%clk 0:01:54]} 24... hxg5 {[%clk 0:01:35.8]} 25. Kxg2
{[%clk 0:01:55.2]} 25... Rf3 {[%clk 0:01:36.5]} 26. Nc1 {[%clk 0:01:48.9]} 26...
Nh4+ {[%clk 0:01:31.4]} 27. Bxh4 {[%clk 0:01:45.5]} 27... gxh4 {[%clk
0:01:33.2]} 28. Ne2 {[%clk 0:01:45]} 28... Qh5 {[%clk 0:01:28.7]} 29. Rac1
{[%clk 0:01:28.8]} 29... Qg4+ {[%clk 0:01:27.8]} 30. Kh1 {[%clk 0:01:29.7]}
30... Rxf2 {[%clk 0:01:22.9]} 0-1

[Event "*** Qualifier 2: Titled Tuesday 3|2 Blitz"]
[Site "Chess.com"]
[Date "2017.04.11"]
[Round "9"]
[White "prochn"]
[Black "Robin-Side"]
[Result "1-0"]
[WhiteElo "2181"]
[BlackElo "2356"]
[TimeControl "180+2"]
[EndTime "15:06:23 PDT"]
[Termination "prochn won by resignation"]

1. d4 {[%clk 0:03:02]} 1... Nf6 {[%clk 0:03:00.4]} 2. c4 {[%clk 0:03:02.6]} 2...
g6 {[%clk 0:03:01.5]} 3. g3 {[%clk 0:03:02]} 3... Bg7 {[%clk 0:03:00.9]} 4. Bg2
{[%clk 0:03:03.1]} 4... d5 {[%clk 0:03:02.5]} 5. cxd5 {[%clk 0:02:58.9]} 5...
Nxd5 {[%clk 0:03:04.4]} 6. Nf3 {[%clk 0:02:59]} 6... O-O {[%clk 0:03:04.9]} 7.
O-O {[%clk 0:02:57]} 7... Nb6 {[%clk 0:03:06.4]} 8. Nc3 {[%clk 0:02:57.1]} 8...
Nc6 {[%clk 0:03:06]} 9. d5 {[%clk 0:02:54]} 9... Nb4 {[%clk 0:02:45.1]} 10. e4
{[%clk 0:02:54.4]} 10... c6 {[%clk 0:02:41.5]} 11. a3 {[%clk 0:02:49.9]} 11...
Na6 {[%clk 0:02:42.4]} 12. Be3 {[%clk 0:02:43.5]} 12... cxd5 {[%clk 0:02:39.7]}
13. exd5 {[%clk 0:02:41.9]} 13... Bxc3 {[%clk 0:02:21.9]} 14. Bxb6 {[%clk
0:02:39.7]} 14... Qxb6 {[%clk 0:02:22.4]} 15. bxc3 {[%clk 0:02:40.9]} 15... Qc5
{[%clk 0:02:22.1]} 16. Qd2 {[%clk 0:02:35.8]} 16... Bd7 {[%clk 0:02:01.5]} 17.
Rac1 {[%clk 0:02:31.3]} 17... Kg7 {[%clk 0:01:57.1]} 18. Rfe1 {[%clk 0:02:30.3]}
18... Rfe8 {[%clk 0:01:51]} 19. Re4 {[%clk 0:02:30.5]} 19... Rac8 {[%clk
0:01:42.5]} 20. Rh4 {[%clk 0:02:15.1]} 20... h5 {[%clk 0:01:41.9]} 21. Rxh5
{[%clk 0:02:10.3]} 21... gxh5 {[%clk 0:01:27.7]} 22. Qg5+ {[%clk 0:02:10]} 22...
Kh7 {[%clk 0:01:28.1]} 23. Qxh5+ {[%clk 0:02:10]} 23... Kg7 {[%clk 0:01:29.3]}
24. Qg5+ {[%clk 0:02:08.6]} 24... Kh7 {[%clk 0:01:30.4]} 25. Ne5 {[%clk
0:01:56.2]} 1-0

[Event "*** Qualifier 2: Titled Tuesday 3|2 Blitz"]
[Site "Chess.com"]
[Date "2017.04.11"]
[Round "9"]
[White "andreimacovei2000"]
[Black "FancyPlaySyndrome"]
[Result "0-1"]
[WhiteElo "2390"]
[BlackElo "2398"]
[TimeControl "180+2"]
[EndTime "15:06:36 PDT"]
[Termination "FancyPlaySyndrome won by resignation"]

1. e4 {[%clk 0:03:02]} 1... c5 {[%clk 0:03:00.7]} 2. Nf3 {[%clk 0:03:03.2]} 2...
d6 {[%clk 0:03:01.8]} 3. Bb5+ {[%clk 0:03:03.8]} 3... Bd7 {[%clk 0:03:01.5]} 4.
Bxd7+ {[%clk 0:03:04.7]} 4... Qxd7 {[%clk 0:03:03.4]} 5. c4 {[%clk 0:03:06.3]}
5... Nc6 {[%clk 0:03:04.6]} 6. Nc3 {[%clk 0:03:05.9]} 6... Nf6 {[%clk
0:03:02.6]} 7. O-O {[%clk 0:03:06.7]} 7... g6 {[%clk 0:03:03.9]} 8. d4 {[%clk
0:03:07.2]} 8... cxd4 {[%clk 0:03:05.4]} 9. Nxd4 {[%clk 0:03:08.9]} 9... Bg7
{[%clk 0:03:07.3]} 10. h3 {[%clk 0:03:02.4]} 10... O-O {[%clk 0:03:08.3]} 11.
Be3 {[%clk 0:03:02.8]} 11... Rfc8 {[%clk 0:03:09.4]} 12. b3 {[%clk 0:03:01.3]}
12... Qd8 {[%clk 0:03:05.1]} 13. Rc1 {[%clk 0:02:58.6]} 13... Nd7 {[%clk
0:03:06.2]} 14. Nd5 {[%clk 0:02:56.4]} 14... a5 {[%clk 0:03:03.4]} 15. Re1
{[%clk 0:02:55]} 15... a4 {[%clk 0:03:03.7]} 16. b4 {[%clk 0:02:54]} 16... e6
{[%clk 0:03:05]} 17. Nc3 {[%clk 0:02:52.6]} 17... Nxb4 {[%clk 0:03:05.5]} 18.
Ndb5 {[%clk 0:02:48.7]} 18... Rxc4 {[%clk 0:02:56.5]} 19. Qxd6 {[%clk
0:02:44.2]} 19... Nc5 {[%clk 0:02:34.5]} 20. Bxc5 {[%clk 0:02:41]} 20... Nd3
{[%clk 0:02:29.2]} 21. Qxd8+ {[%clk 0:02:30.5]} 21... Rxd8 {[%clk 0:02:30.2]}
22. Bb6 {[%clk 0:02:31]} 22... Rdc8 {[%clk 0:01:44.5]} 23. Nd6 {[%clk
0:02:20.2]} 23... Rxc3 {[%clk 0:01:38.7]} 24. Nxc8 {[%clk 0:02:20.5]} 24... Rxc1
{[%clk 0:01:39.9]} 25. Rxc1 {[%clk 0:02:21.3]} 25... Nxc1 {[%clk 0:01:41.8]} 26.
a3 {[%clk 0:02:20]} 26... Bf8 {[%clk 0:01:43.2]} 27. e5 {[%clk 0:02:09.1]} 27...
Nd3 {[%clk 0:01:38.8]} 28. Nd6 {[%clk 0:02:09.1]} 28... Nxe5 {[%clk 0:01:37.6]}
29. Nxb7 {[%clk 0:02:10.1]} 29... Bxa3 {[%clk 0:01:38.3]} 30. Nc5 {[%clk
0:02:09.2]} 30... Nc4 {[%clk 0:01:36.2]} 31. Nxa4 {[%clk 0:02:06.9]} 31... Nxb6
{[%clk 0:01:34.5]} 32. Nxb6 {[%clk 0:02:08.8]} 32... Kf8 {[%clk 0:01:35.8]} 33.
Nc4 {[%clk 0:02:07.7]} 33... Bc5 {[%clk 0:01:36.7]} 34. Kf1 {[%clk 0:02:07.4]}
34... Ke8 {[%clk 0:01:37.9]} 35. Ke2 {[%clk 0:02:08]} 35... f6 {[%clk
0:01:34.5]} 36. Nd2 {[%clk 0:02:08.2]} 36... Kd7 {[%clk 0:01:33.9]} 37. Ne4
{[%clk 0:02:08.6]} 37... Be7 {[%clk 0:01:34.1]} 38. Nd2 {[%clk 0:02:09.1]} 38...
Kd6 {[%clk 0:01:16.3]} 39. Kd3 {[%clk 0:02:09.3]} 39... Kd5 {[%clk 0:01:17.5]}
40. Nf3 {[%clk 0:02:09.8]} 40... e5 {[%clk 0:01:15.6]} 41. g4 {[%clk 0:02:11.1]}
41... e4+ {[%clk 0:01:15.6]} 0-1

[Event "*** Qualifier 2: Titled Tuesday 3|2 Blitz"]
[Site "Chess.com"]
[Date "2017.04.11"]
[Round "9"]
[White "VMikhalevski"]
[Black "jefferyx"]
[Result "1-0"]
[WhiteElo "2557"]
[BlackElo "2595"]
[TimeControl "180+2"]
[EndTime "15:06:38 PDT"]
[Termination "VMikhalevski won by resignation"]

1. Nf3 {[%clk 0:03:02]} 1... c5 {[%clk 0:03:00.4]} 2. g3 {[%clk 0:03:02.6]} 2...
g6 {[%clk 0:02:58.3]} 3. Bg2 {[%clk 0:03:00.2]} 3... Bg7 {[%clk 0:02:56.1]} 4.
c4 {[%clk 0:03:00.7]} 4... Nf6 {[%clk 0:02:56.9]} 5. Nc3 {[%clk 0:03:01.4]} 5...
O-O {[%clk 0:02:50.3]} 6. d4 {[%clk 0:03:01.8]} 6... cxd4 {[%clk 0:02:52.2]} 7.
Nxd4 {[%clk 0:03:02.8]} 7... Qc7 {[%clk 0:02:53.3]} 8. b3 {[%clk 0:02:59.4]}
8... d5 {[%clk 0:02:51.4]} 9. Ndb5 {[%clk 0:02:48.5]} 9... Qa5 {[%clk
0:02:44.7]} 10. Bd2 {[%clk 0:02:48.5]} 10... dxc4 {[%clk 0:02:43.5]} 11. bxc4
{[%clk 0:02:45.6]} 11... Qd8 {[%clk 0:02:38.4]} 12. Rb1 {[%clk 0:02:42.4]} 12...
a6 {[%clk 0:02:38.8]} 13. Na3 {[%clk 0:02:41.1]} 13... Nc6 {[%clk 0:02:38.6]}
14. O-O {[%clk 0:02:34.1]} 14... Qd6 {[%clk 0:02:30.9]} 15. Qc1 {[%clk 0:02:24]}
15... Rb8 {[%clk 0:02:16.5]} 16. Nd5 {[%clk 0:02:20.9]} 16... Bf5 {[%clk
0:02:14.9]} 17. Rb3 {[%clk 0:02:16.2]} 17... Ne4 {[%clk 0:02:15.7]} 18. Bf4
{[%clk 0:02:14.1]} 18... e5 {[%clk 0:02:02.4]} 19. Be3 {[%clk 0:02:11.6]} 19...
Nd4 {[%clk 0:02:03.7]} 20. Bxd4 {[%clk 0:02:06.5]} 20... exd4 {[%clk 0:02:05.6]}
21. g4 {[%clk 0:02:05.1]} 21... Bxg4 {[%clk 0:01:32]} 22. Bxe4 {[%clk
0:02:05.1]} 22... Bxe2 {[%clk 0:01:33.5]} 23. Re1 {[%clk 0:02:05.5]} 23... Bg4
{[%clk 0:01:35.3]} 24. c5 {[%clk 0:02:03.6]} 24... Qd8 {[%clk 0:01:36.5]} 25.
Rb6 {[%clk 0:01:58.4]} 25... Be6 {[%clk 0:01:37.5]} 26. Rd6 {[%clk 0:01:58]}
26... Qh4 {[%clk 0:01:37.9]} 27. Nc4 {[%clk 0:01:50.1]} 27... Rbc8 {[%clk
0:01:34.9]} 28. Ncb6 {[%clk 0:01:45.1]} 28... Bh6 {[%clk 0:01:21.6]} 29. Qa3
{[%clk 0:01:44.3]} 29... Rce8 {[%clk 0:01:20.4]} 30. Qg3 {[%clk 0:01:43]} 30...
Qxg3+ {[%clk 0:01:06.9]} 31. hxg3 {[%clk 0:01:42.8]} 31... Bxd5 {[%clk
0:01:08.8]} 32. Nxd5 {[%clk 0:01:42]} 32... f5 {[%clk 0:01:10.3]} 33. Nf6+
{[%clk 0:01:37.3]} 33... Kh8 {[%clk 0:01:05.1]} 34. Nxe8 {[%clk 0:01:33.7]}
34... Rxe8 {[%clk 0:01:07]} 35. Rxd4 {[%clk 0:01:33.1]} 1-0